[Event "*** Titled Tuesday Blitz"]
[Site "Chess.com"]
[Date "2021.04.06"]
[Round "8"]
[White "zmeeed67"]
[Black "Chopper1905"]
[Result "1-0"]
[WhiteElo "2462"]
[BlackElo "2915"]
[TimeControl "180+1"]
[EndTime "11:30:55 PDT"]
[Termination "zmeeed67 won on time"]

1. d4 {[%clk 0:03:00.9]} 1... f5 {[%clk 0:02:57]} 2. Nc3 {[%clk 0:02:59]} 2...
Nf6 {[%clk 0:02:56.8]} 3. Bg5 {[%clk 0:02:58.9]} 3... d5 {[%clk 0:02:56.8]} 4.
Bxf6 {[%clk 0:02:58.9]} 4... exf6 {[%clk 0:02:56]} 5. e3 {[%clk 0:02:59.8]} 5...
Be6 {[%clk 0:02:50]} 6. Bd3 {[%clk 0:02:59.8]} 6... c6 {[%clk 0:02:44]} 7. Qf3
{[%clk 0:02:57.8]} 7... g6 {[%clk 0:02:41.8]} 8. h3 {[%clk 0:02:58.1]} 8... h5
{[%clk 0:02:33.3]} 9. Nge2 {[%clk 0:02:53.4]} 9... Bd6 {[%clk 0:02:32.8]} 10. g4
{[%clk 0:02:10.5]} 10... fxg4 {[%clk 0:02:19.1]} 11. hxg4 {[%clk 0:02:09.9]}
11... Bxg4 {[%clk 0:01:50.8]} 12. Bxg6+ {[%clk 0:02:09.2]} 12... Ke7 {[%clk
0:01:50.2]} 13. Qg2 {[%clk 0:01:57.1]} 13... Rg8 {[%clk 0:01:36.9]} 14. Bh7
{[%clk 0:01:52.2]} 14... Rg7 {[%clk 0:01:16]} 15. f3 {[%clk 0:01:31.5]} 15...
Rxh7 {[%clk 0:01:09.7]} 16. fxg4 {[%clk 0:01:31.1]} 16... h4 {[%clk 0:01:09]}
17. g5 {[%clk 0:01:20.7]} 17... Nd7 {[%clk 0:01:01.7]} 18. O-O-O {[%clk
0:01:16.8]} 18... Qh8 {[%clk 0:00:48.2]} 19. e4 {[%clk 0:01:12.2]} 19... h3
{[%clk 0:00:42.4]} 20. Qf3 {[%clk 0:01:05.7]} 20... fxg5 {[%clk 0:00:36.3]} 21.
exd5 {[%clk 0:01:02.6]} 21... Rf8 {[%clk 0:00:32.3]} 22. Qe4+ {[%clk 0:00:42.9]}
22... Kd8 {[%clk 0:00:32.1]} 23. dxc6 {[%clk 0:00:43.5]} 23... bxc6 {[%clk
0:00:15.7]} 24. Qxc6 {[%clk 0:00:38.7]} 24... Rh6 {[%clk 0:00:16]} 25. Kb1
{[%clk 0:00:23.4]} 25... g4 {[%clk 0:00:15.2]} 26. Nd5 {[%clk 0:00:20.4]} 26...
g3 {[%clk 0:00:13.4]} 27. Qa8+ {[%clk 0:00:13.2]} 27... Bb8 {[%clk 0:00:13.4]}
28. Nxg3 {[%clk 0:00:05]} 28... h2 {[%clk 0:00:13.4]} 29. Ne4 {[%clk 0:00:04.2]}
29... Qh7 {[%clk 0:00:06.6]} 30. Nc5 {[%clk 0:00:04]} 30... Rf2 {[%clk
0:00:06.5]} 31. Rc1 {[%clk 0:00:02.4]} 31... Rd6 {[%clk 0:00:02]} 32. Nb7+
{[%clk 0:00:02.4]} 32... Kc8 {[%clk 0:00:01.3]} 33. Nxd6+ {[%clk 0:00:03.3]}
33... Kd8 {[%clk 0:00:01.9]} 34. Nb7+ {[%clk 0:00:02.2]} 34... Kc8 {[%clk
0:00:02.3]} 35. Nd6+ {[%clk 0:00:02.4]} 35... Kd8 {[%clk 0:00:02.8]} 36. Nc4
{[%clk 0:00:01.5]} 36... Qe4 {[%clk 0:00:02.3]} 37. Nce3 {[%clk 0:00:01.8]}
37... Rxc2 {[%clk 0:00:02.3]} 38. Nxc2 {[%clk 0:00:01.2]} 38... Qg2 {[%clk
0:00:02.5]} 39. Qb7 {[%clk 0:00:01.8]} 39... Bf4 {[%clk 0:00:01.4]} 40. Qb3
{[%clk 0:00:02.4]} 40... Bxc1 {[%clk 0:00:01.6]} 41. Rxc1 {[%clk 0:00:03.2]}
41... h1=Q {[%clk 0:00:01.9]} 42. Rxh1 {[%clk 0:00:01.5]} 42... Qxh1+ {[%clk
0:00:02.8]} 43. Ne1 {[%clk 0:00:02.4]} 43... Qxe1+ {[%clk 0:00:03.6]} 44. Kc2
{[%clk 0:00:03.3]} 44... Qe4+ {[%clk 0:00:04.2]} 45. Kd2 {[%clk 0:00:02.3]}
45... Qg2+ {[%clk 0:00:04.1]} 46. Kc1 {[%clk 0:00:02.4]} 46... Qf1+ {[%clk
0:00:04.4]} 47. Qd1 {[%clk 0:00:02.7]} 47... Qc4+ {[%clk 0:00:03.8]} 48. Nc3
{[%clk 0:00:03.2]} 48... Nb6 {[%clk 0:00:04.5]} 49. Qe2 {[%clk 0:00:03]} 49...
Qg8 {[%clk 0:00:03.5]} 50. Kc2 {[%clk 0:00:02.9]} 50... Qg6+ {[%clk 0:00:03.5]}
51. Qd3 {[%clk 0:00:03.1]} 51... Qg2+ {[%clk 0:00:03.7]} 52. Qe2 {[%clk
0:00:03.6]} 52... Qg3 {[%clk 0:00:03.5]} 53. d5 {[%clk 0:00:03.3]} 53... Qf4
{[%clk 0:00:03.3]} 54. Qd3 {[%clk 0:00:01.9]} 54... Qf2+ {[%clk 0:00:03.5]} 55.
Qd2 {[%clk 0:00:02.1]} 55... Qf5+ {[%clk 0:00:03.8]} 56. Qd3 {[%clk 0:00:02.6]}
56... Qe5 {[%clk 0:00:04.6]} 57. d6 {[%clk 0:00:02.4]} 57... Qh2+ {[%clk
0:00:04]} 58. Qd2 {[%clk 0:00:02.5]} 58... Qh7+ {[%clk 0:00:04.6]} 59. Kc1
{[%clk 0:00:02.1]} 59... Nc4 {[%clk 0:00:04.4]} 60. Qe2 {[%clk 0:00:02.5]} 60...
Qh6+ {[%clk 0:00:03.7]} 61. Kc2 {[%clk 0:00:02.4]} 61... Nxd6 {[%clk 0:00:02.6]}
62. Qd2 {[%clk 0:00:02.1]} 62... Qg6+ {[%clk 0:00:02.9]} 63. Qd3 {[%clk
0:00:02.5]} 63... Qg2+ {[%clk 0:00:03.3]} 64. Qd2 {[%clk 0:00:03.2]} 64... Qg6+
{[%clk 0:00:03.5]} 65. Qd3 {[%clk 0:00:03.5]} 65... Qg2+ {[%clk 0:00:03.8]} 66.
Qd2 {[%clk 0:00:03.9]} 66... Qc6 {[%clk 0:00:04.4]} 67. Qd3 {[%clk 0:00:03.6]}
67... Kc8 {[%clk 0:00:03.9]} 68. a3 {[%clk 0:00:04.2]} 68... Qg2+ {[%clk
0:00:03.7]} 69. Kb1 {[%clk 0:00:04.4]} 69... Qh2 {[%clk 0:00:02.9]} 70. Qd4
{[%clk 0:00:03.3]} 70... Qh1+ {[%clk 0:00:02.5]} 71. Kc2 {[%clk 0:00:03.1]} 1-0

[Event "*** Titled Tuesday Blitz"]
[Site "Chess.com"]
[Date "2021.04.06"]
[Round "8"]
[White "Balla_Tamas"]
[Black "Fy_Rakotomaharo"]
[Result "1/2-1/2"]
[WhiteElo "2561"]
[BlackElo "2689"]
[TimeControl "180+1"]
[EndTime "11:31:01 PDT"]
[Termination "Game drawn by agreement"]

1. e4 {[%clk 0:03:00.9]} 1... e5 {[%clk 0:03:00]} 2. Nf3 {[%clk 0:02:59.6]} 2...
Nc6 {[%clk 0:03:00.3]} 3. d4 {[%clk 0:02:59.2]} 3... exd4 {[%clk 0:03:00.2]} 4.
Nxd4 {[%clk 0:03:00.1]} 4... Nf6 {[%clk 0:03:00.8]} 5. Nxc6 {[%clk 0:02:59.7]}
5... bxc6 {[%clk 0:03:01.7]} 6. e5 {[%clk 0:03:00.1]} 6... Qe7 {[%clk
0:03:02.4]} 7. Qe2 {[%clk 0:02:59.7]} 7... Nd5 {[%clk 0:03:03]} 8. c4 {[%clk
0:03:00.1]} 8... Nb6 {[%clk 0:03:03.2]} 9. b3 {[%clk 0:02:59.6]} 9... a5 {[%clk
0:03:02.8]} 10. Ba3 {[%clk 0:02:45.2]} 10... Qe6 {[%clk 0:02:58.6]} 11. Bxf8
{[%clk 0:02:44.8]} 11... Kxf8 {[%clk 0:02:59.4]} 12. a4 {[%clk 0:02:32.2]} 12...
g6 {[%clk 0:02:53.7]} 13. g3 {[%clk 0:02:28.7]} 13... Kg7 {[%clk 0:02:53.1]} 14.
Bg2 {[%clk 0:02:28.9]} 14... Re8 {[%clk 0:02:52.4]} 15. f4 {[%clk 0:02:29]}
15... Ba6 {[%clk 0:02:24.5]} 16. Nc3 {[%clk 0:02:03.9]} 16... d5 {[%clk
0:02:16.3]} 17. exd6 {[%clk 0:01:46.5]} 17... Qxd6 {[%clk 0:02:02.7]} 18. Ne4
{[%clk 0:01:46.4]} 18... Qb4+ {[%clk 0:02:02.7]} 19. Qd2 {[%clk 0:01:36]} 19...
f5 {[%clk 0:01:58.9]} 20. Qxb4 {[%clk 0:01:25.5]} 20... axb4 {[%clk 0:01:58.8]}
21. O-O-O {[%clk 0:01:24.7]} 21... fxe4 {[%clk 0:01:57.9]} 22. Rhe1 {[%clk
0:01:24.7]} 22... c5 {[%clk 0:01:45.1]} 23. a5 {[%clk 0:01:13.6]} 23... Nc8
{[%clk 0:01:43.2]} 24. Bxe4 {[%clk 0:01:11.7]} 24... Ra7 {[%clk 0:01:29.3]} 25.
Rd7+ {[%clk 0:00:57.5]} 25... Re7 {[%clk 0:01:25.1]} 26. Bc6 {[%clk 0:00:51.7]}
26... Rxd7 {[%clk 0:01:11.9]} 27. Bxd7 {[%clk 0:00:52.6]} 27... Kf7 {[%clk
0:00:58.5]} 28. Re5 {[%clk 0:00:43.4]} 28... Nd6 {[%clk 0:00:53.8]} 29. Rxc5
{[%clk 0:00:39]} 29... Bc8 {[%clk 0:00:53.4]} 30. Bxc8 {[%clk 0:00:32.1]} 30...
Nxc8 {[%clk 0:00:53.7]} 31. Kd2 {[%clk 0:00:30.1]} 31... Nd6 {[%clk 0:00:53.7]}
32. Ke3 {[%clk 0:00:29.1]} 32... Ke6 {[%clk 0:00:53.2]} 33. g4 {[%clk
0:00:28.8]} 33... Kd7 {[%clk 0:00:52.2]} 34. Kd4 {[%clk 0:00:26.5]} 34... Ra8
{[%clk 0:00:41.9]} 35. Re5 {[%clk 0:00:23.5]} 35... Rf8 {[%clk 0:00:35.9]} 36.
Ke3 {[%clk 0:00:21.8]} 36... Kc6 {[%clk 0:00:28.8]} 37. h4 {[%clk 0:00:19]}
37... h5 {[%clk 0:00:27.2]} 38. gxh5 {[%clk 0:00:18.4]} 38... Nf5+ {[%clk
0:00:27.6]} 39. Ke4 {[%clk 0:00:17.9]} 39... Ng3+ {[%clk 0:00:27.9]} 40. Kd3
{[%clk 0:00:17.7]} 40... Nxh5 {[%clk 0:00:23.1]} 41. Rb5 {[%clk 0:00:17.6]}
41... Nxf4+ {[%clk 0:00:14.3]} 42. Ke4 {[%clk 0:00:17.7]} 42... Ne6 {[%clk
0:00:14.3]} 43. Rxb4 {[%clk 0:00:17.2]} 43... Ra8 {[%clk 0:00:14.4]} 44. Rb5
{[%clk 0:00:16.8]} 44... Nc5+ {[%clk 0:00:08.5]} 45. Kd4 {[%clk 0:00:16.9]}
45... Nb7 {[%clk 0:00:07]} 46. b4 {[%clk 0:00:16.3]} 46... Nd6 {[%clk
0:00:05.5]} 47. Rc5+ {[%clk 0:00:15.4]} 47... Kd7 {[%clk 0:00:05.5]} 48. Rg5
{[%clk 0:00:14.8]} 48... Nf5+ {[%clk 0:00:03.8]} 49. Kc3 {[%clk 0:00:14.6]}
49... Nxh4 {[%clk 0:00:04]} 50. Rg4 {[%clk 0:00:14.9]} 50... Rh8 {[%clk
0:00:01.8]} 51. a6 {[%clk 0:00:14.6]} 51... Kc6 {[%clk 0:00:02.4]} 52. b5+
{[%clk 0:00:14.4]} 52... Kb6 {[%clk 0:00:02.9]} 53. Kb4 {[%clk 0:00:14.5]} 53...
c5+ {[%clk 0:00:02.8]} 54. bxc6 {[%clk 0:00:13.4]} 54... Kxc6 {[%clk 0:00:02.8]}
55. Ka5 {[%clk 0:00:14]} 55... Kc7 {[%clk 0:00:02.5]} 56. c5 {[%clk 0:00:12.9]}
56... Rh6 {[%clk 0:00:02.7]} 57. Rb4 {[%clk 0:00:11.9]} 57... Rh8 {[%clk
0:00:02]} 58. a7 {[%clk 0:00:11.7]} 58... Ra8 {[%clk 0:00:01.2]} 59. Ka6 {[%clk
0:00:11.9]} 59... Nf5 {[%clk 0:00:02.1]} 60. Rb7+ {[%clk 0:00:12.1]} 60... Kc8
{[%clk 0:00:02.5]} 61. Rb6 {[%clk 0:00:11.8]} 61... Nd4 {[%clk 0:00:02.2]} 62.
Rxg6 {[%clk 0:00:11.1]} 62... Kc7 {[%clk 0:00:03.1]} 63. Rg7+ {[%clk 0:00:11]}
63... Kc6 {[%clk 0:00:03.4]} 64. Rg6+ {[%clk 0:00:10.2]} 64... Kxc5 {[%clk
0:00:03.1]} 65. Rg5+ {[%clk 0:00:10.5]} 65... Kc4 {[%clk 0:00:03.1]} 66. Kb7
{[%clk 0:00:09.9]} 66... Rxa7+ {[%clk 0:00:02.7]} 67. Kxa7 {[%clk 0:00:10]}
67... Nc6+ {[%clk 0:00:02.8]} 68. Kb6 {[%clk 0:00:09.5]} 68... Nd4 {[%clk
0:00:03.7]} 69. Rc5+ {[%clk 0:00:09.5]} 69... Kd3 {[%clk 0:00:03.9]} 70. Rd5
{[%clk 0:00:09.7]} 70... Ke3 {[%clk 0:00:04.5]} 71. Kc5 {[%clk 0:00:09.9]} 71...
Nb3+ {[%clk 0:00:04.4]} 72. Kc4 {[%clk 0:00:09.5]} 72... Nd2+ {[%clk 0:00:05.3]}
73. Kc3 {[%clk 0:00:09.4]} 73... Ne4+ {[%clk 0:00:06.2]} 74. Kc4 {[%clk
0:00:09.6]} 74... Kf4 {[%clk 0:00:07]} 75. Rd4 {[%clk 0:00:09.2]} 75... Ke5
{[%clk 0:00:07.5]} 76. Kd3 {[%clk 0:00:09.1]} 76... Nc5+ {[%clk 0:00:07.9]} 77.
Ke3 {[%clk 0:00:09.1]} 77... Ne6 {[%clk 0:00:08.8]} 78. Ra4 {[%clk 0:00:08.9]}
78... Kd5 {[%clk 0:00:09.1]} 79. Ra5+ {[%clk 0:00:09]} 79... Nc5 {[%clk
0:00:09.6]} 80. Rb5 {[%clk 0:00:07.4]} 80... Kc4 {[%clk 0:00:09.1]} 1/2-1/2

[Event "*** Titled Tuesday Blitz"]
[Site "Chess.com"]
[Date "2021.04.06"]
[Round "8"]
[White "ChampStan"]
[Black "Rytenko_V"]
[Result "0-1"]
[WhiteElo "2049"]
[BlackElo "2376"]
[TimeControl "180+1"]
[EndTime "11:31:02 PDT"]
[Termination "Rytenko_V won on time"]

1. d4 {[%clk 0:03:00.9]} 1... d5 {[%clk 0:02:59.8]} 2. c4 {[%clk 0:03:00.6]}
2... c6 {[%clk 0:02:59.7]} 3. Nc3 {[%clk 0:02:59.6]} 3... Nf6 {[%clk 0:02:59.8]}
4. cxd5 {[%clk 0:02:59.4]} 4... cxd5 {[%clk 0:02:59.3]} 5. Bf4 {[%clk
0:02:56.7]} 5... Nc6 {[%clk 0:02:59.3]} 6. Nf3 {[%clk 0:02:55.7]} 6... Qb6
{[%clk 0:02:56.4]} 7. Na4 {[%clk 0:02:07.7]} 7... Qa5+ {[%clk 0:02:52.1]} 8. Bd2
{[%clk 0:02:05.7]} 8... Qd8 {[%clk 0:02:47.6]} 9. e3 {[%clk 0:01:53.8]} 9... Bg4
{[%clk 0:02:41.4]} 10. Be2 {[%clk 0:01:43.2]} 10... e6 {[%clk 0:02:40.7]} 11.
O-O {[%clk 0:01:41.6]} 11... Bd6 {[%clk 0:02:40.3]} 12. Nc5 {[%clk 0:01:31.2]}
12... Qe7 {[%clk 0:02:32.2]} 13. b4 {[%clk 0:01:22.5]} 13... a6 {[%clk
0:02:29.8]} 14. a4 {[%clk 0:01:19.7]} 14... O-O {[%clk 0:02:29.8]} 15. Rc1
{[%clk 0:00:57.2]} 15... h6 {[%clk 0:02:18.5]} 16. h3 {[%clk 0:00:55.4]} 16...
Bh5 {[%clk 0:02:17.8]} 17. Ne1 {[%clk 0:00:50.8]} 17... Bxe2 {[%clk 0:02:10]}
18. Qxe2 {[%clk 0:00:51.7]} 18... b6 {[%clk 0:01:53.4]} 19. Nxa6 {[%clk
0:00:25.3]} 19... Nxb4 {[%clk 0:01:49.5]} 20. Bxb4 {[%clk 0:00:14.6]} 20... Bxb4
{[%clk 0:01:50.4]} 21. Nxb4 {[%clk 0:00:12.1]} 21... Qxb4 {[%clk 0:01:50]} 22.
Nd3 {[%clk 0:00:11.2]} 22... Qxa4 {[%clk 0:01:48]} 23. Ne5 {[%clk 0:00:11.2]}
23... Rfc8 {[%clk 0:01:42.1]} 24. Rb1 {[%clk 0:00:10.5]} 24... Rab8 {[%clk
0:01:31.8]} 25. Ra1 {[%clk 0:00:10.1]} 25... Qc2 {[%clk 0:01:23.8]} 26. Qb5
{[%clk 0:00:07.9]} 26... Rc7 {[%clk 0:01:07.5]} 27. Rfb1 {[%clk 0:00:03.6]}
27... Ne4 {[%clk 0:01:04]} 28. Rb2 {[%clk 0:00:04.1]} 28... Qc3 {[%clk
0:01:03.5]} 29. Rab1 {[%clk 0:00:04.2]} 29... f6 {[%clk 0:00:55.9]} 30. Nf3
{[%clk 0:00:04]} 30... Rbc8 {[%clk 0:00:56.4]} 31. Qxb6 {[%clk 0:00:03.6]} 31...
Rc6 {[%clk 0:00:51.5]} 32. Qb7 {[%clk 0:00:03.4]} 32... R8c7 {[%clk 0:00:46.7]}
33. Qb8+ {[%clk 0:00:03.4]} 33... Rc8 {[%clk 0:00:45]} 34. Qb7 {[%clk
0:00:03.5]} 34... R6c7 {[%clk 0:00:40.9]} 35. Qb6 {[%clk 0:00:02.8]} 35... Qc6
{[%clk 0:00:41.6]} 36. Qxc6 {[%clk 0:00:02.2]} 36... Rxc6 {[%clk 0:00:42.5]} 37.
Nd2 {[%clk 0:00:02.8]} 37... Rc1+ {[%clk 0:00:39.4]} 38. Rxc1 {[%clk 0:00:01.5]}
38... Rxc1+ {[%clk 0:00:40.3]} 39. Nf1 {[%clk 0:00:01.2]} 39... Nc3 {[%clk
0:00:38.6]} 40. g3 {[%clk 0:00:01.7]} 40... Na4 {[%clk 0:00:35.2]} 41. Rd2
{[%clk 0:00:01.9]} 41... Nb6 {[%clk 0:00:34.6]} 42. Kg2 {[%clk 0:00:02.4]} 42...
Nc4 {[%clk 0:00:35.3]} 43. Re2 {[%clk 0:00:03.3]} 43... Kf7 {[%clk 0:00:35.5]}
44. e4 {[%clk 0:00:03.6]} 44... dxe4 {[%clk 0:00:32.3]} 45. f3 {[%clk
0:00:02.6]} 45... exf3+ {[%clk 0:00:31.3]} 46. Kxf3 {[%clk 0:00:03.5]} 46...
Rc3+ {[%clk 0:00:31.5]} 47. Kg2 {[%clk 0:00:02.9]} 47... Nd6 {[%clk 0:00:30.9]}
48. Rd2 {[%clk 0:00:02.7]} 48... Ra3 {[%clk 0:00:25.8]} 49. d5 {[%clk
0:00:02.7]} 49... e5 {[%clk 0:00:26.2]} 50. Rc2 {[%clk 0:00:03.2]} 50... Ra7
{[%clk 0:00:25.1]} 51. Rc6 {[%clk 0:00:02.8]} 51... Rd7 {[%clk 0:00:25.2]} 52.
Ne3 {[%clk 0:00:02.9]} 52... g6 {[%clk 0:00:22]} 53. Kf3 {[%clk 0:00:03.2]}
53... f5 {[%clk 0:00:21.6]} 54. g4 {[%clk 0:00:02.8]} 54... f4 {[%clk
0:00:14.3]} 55. Nc2 {[%clk 0:00:02.9]} 55... g5 {[%clk 0:00:13.8]} 56. Nb4
{[%clk 0:00:02.4]} 56... e4+ {[%clk 0:00:14.3]} 57. Ke2 {[%clk 0:00:02]} 57...
Ne8 {[%clk 0:00:10.6]} 58. Rc5 {[%clk 0:00:01.2]} 58... Nf6 {[%clk 0:00:10.7]}
59. Rc6 {[%clk 0:00:01.5]} 59... Nxd5 {[%clk 0:00:09.7]} 60. Nxd5 {[%clk
0:00:02.4]} 60... Rxd5 {[%clk 0:00:10.1]} 61. Rxh6 {[%clk 0:00:03.3]} 61... Ra5
{[%clk 0:00:09.5]} 62. Rh7+ {[%clk 0:00:03.3]} 62... Kg6 {[%clk 0:00:08]} 63.
Re7 {[%clk 0:00:03.3]} 63... Ra2+ {[%clk 0:00:08.3]} 64. Kf1 {[%clk 0:00:02.9]}
64... Ra4 {[%clk 0:00:07.7]} 65. Kf2 {[%clk 0:00:02.8]} 65... Kf6 {[%clk
0:00:08.1]} 66. Re8 {[%clk 0:00:02.8]} 66... Rb4 {[%clk 0:00:06.9]} 67. Ke2
{[%clk 0:00:01.6]} 67... Rb2+ {[%clk 0:00:06.2]} 68. Kf1 {[%clk 0:00:02.1]}
68... e3 {[%clk 0:00:06.7]} 69. Re4 {[%clk 0:00:01.4]} 69... Rh2 {[%clk
0:00:05.6]} 0-1

[Event "*** Titled Tuesday Blitz"]
[Site "Chess.com"]
[Date "2021.04.06"]
[Round "8"]
[White "Jumbo"]
[Black "scandalgod"]
[Result "1-0"]
[WhiteElo "2835"]
[BlackElo "2568"]
[TimeControl "180+1"]
[EndTime "11:31:05 PDT"]
[Termination "Jumbo won on time"]

1. d4 {[%clk 0:03:00.9]} 1... d5 {[%clk 0:02:43.6]} 2. c4 {[%clk 0:03:01]} 2...
c6 {[%clk 0:02:42.8]} 3. Nf3 {[%clk 0:03:01]} 3... Nf6 {[%clk 0:02:43]} 4. Qb3
{[%clk 0:03:01.4]} 4... dxc4 {[%clk 0:02:40.8]} 5. Qxc4 {[%clk 0:03:02.3]} 5...
Bg4 {[%clk 0:02:39.2]} 6. Nbd2 {[%clk 0:03:02.5]} 6... Nbd7 {[%clk 0:02:36.7]}
7. Qb3 {[%clk 0:03:02.9]} 7... Qb6 {[%clk 0:02:31.9]} 8. Nc4 {[%clk 0:03:02.5]}
8... Qc7 {[%clk 0:02:14.2]} 9. g3 {[%clk 0:03:00]} 9... g6 {[%clk 0:02:09]} 10.
Bf4 {[%clk 0:02:57]} 10... Qc8 {[%clk 0:02:04.9]} 11. Ng5 {[%clk 0:02:50.7]}
11... Nd5 {[%clk 0:01:45.8]} 12. h3 {[%clk 0:02:28.1]} 12... Bf5 {[%clk
0:01:38.1]} 13. e4 {[%clk 0:02:25.5]} 13... Nxf4 {[%clk 0:01:31.2]} 14. gxf4
{[%clk 0:01:29.1]} 14... Be6 {[%clk 0:01:27.5]} 15. Nxe6 {[%clk 0:01:25.7]}
15... fxe6 {[%clk 0:01:27.5]} 16. h4 {[%clk 0:01:16.7]} 16... Bg7 {[%clk
0:01:23]} 17. Ne5 {[%clk 0:00:58.7]} 17... Nxe5 {[%clk 0:01:17.7]} 18. fxe5
{[%clk 0:00:59.6]} 18... Qc7 {[%clk 0:01:12.9]} 19. Bc4 {[%clk 0:00:54]} 19...
O-O-O {[%clk 0:01:08.6]} 20. Bxe6+ {[%clk 0:00:52.9]} 20... Kb8 {[%clk
0:01:08.8]} 21. O-O-O {[%clk 0:00:53.3]} 21... c5 {[%clk 0:01:04.6]} 22. Kb1
{[%clk 0:00:45.2]} 22... cxd4 {[%clk 0:01:01.3]} 23. f4 {[%clk 0:00:45]} 23...
Rhf8 {[%clk 0:00:58.2]} 24. Rhf1 {[%clk 0:00:43.2]} 24... Bh6 {[%clk 0:00:54.7]}
25. Qg3 {[%clk 0:00:41.2]} 25... a6 {[%clk 0:00:48.7]} 26. Bd5 {[%clk
0:00:29.1]} 26... Qb6 {[%clk 0:00:43.8]} 27. h5 {[%clk 0:00:27.8]} 27... Ka7
{[%clk 0:00:37.4]} 28. e6 {[%clk 0:00:10.4]} 28... gxh5 {[%clk 0:00:32.2]} 29.
f5 {[%clk 0:00:09.3]} 29... Be3 {[%clk 0:00:30.6]} 30. Qg7 {[%clk 0:00:07.4]}
30... Qd6 {[%clk 0:00:17.6]} 31. Rd3 {[%clk 0:00:05]} 31... Rg8 {[%clk
0:00:15.9]} 32. Qxh7 {[%clk 0:00:05.1]} 32... Rc8 {[%clk 0:00:15.5]} 33. Rb3
{[%clk 0:00:04.4]} 33... Rc7 {[%clk 0:00:14.6]} 34. a3 {[%clk 0:00:04.3]} 34...
Rgc8 {[%clk 0:00:14.5]} 35. Ka2 {[%clk 0:00:04.9]} 35... d3 {[%clk 0:00:13.5]}
36. Rxd3 {[%clk 0:00:04.2]} 36... Qc5 {[%clk 0:00:11.1]} 37. Rb3 {[%clk
0:00:04.5]} 37... Bd4 {[%clk 0:00:10.9]} 38. Qxh5 {[%clk 0:00:04.5]} 38... Qd6
{[%clk 0:00:09.8]} 39. Qd1 {[%clk 0:00:04.5]} 39... Bf6 {[%clk 0:00:09]} 40. Qd3
{[%clk 0:00:05]} 40... Qe5 {[%clk 0:00:08.7]} 41. Rb1 {[%clk 0:00:05.3]} 41...
b6 {[%clk 0:00:07.7]} 42. a4 {[%clk 0:00:05]} 42... Qd4 {[%clk 0:00:07.8]} 43.
Qxd4 {[%clk 0:00:04.9]} 43... Bxd4 {[%clk 0:00:08]} 44. Rd3 {[%clk 0:00:05.4]}
44... Be5 {[%clk 0:00:07.5]} 45. Kb3 {[%clk 0:00:05.9]} 45... Rd8 {[%clk
0:00:06.4]} 46. Rbd1 {[%clk 0:00:05]} 46... Rc5 {[%clk 0:00:06.2]} 47. R1d2
{[%clk 0:00:05.3]} 47... Rd6 {[%clk 0:00:06.1]} 48. Rc2 {[%clk 0:00:04.5]} 48...
Kb8 {[%clk 0:00:05.4]} 49. Rxc5 {[%clk 0:00:04.5]} 49... bxc5 {[%clk 0:00:05.7]}
50. Kc4 {[%clk 0:00:05]} 50... Bd4 {[%clk 0:00:04.6]} 51. b4 {[%clk 0:00:04.8]}
51... Bf6 {[%clk 0:00:02.3]} 52. bxc5 {[%clk 0:00:04.9]} 52... Rd8 {[%clk
0:00:03.2]} 53. Rb3+ {[%clk 0:00:04.8]} 53... Kc8 {[%clk 0:00:01.8]} 54. Rb6
{[%clk 0:00:05.2]} 54... Be5 {[%clk 0:00:02.7]} 55. Rxa6 {[%clk 0:00:05.4]}
55... Rh8 {[%clk 0:00:02.1]} 56. Ra8+ {[%clk 0:00:05.6]} 56... Bb8 {[%clk
0:00:03]} 57. Kb5 {[%clk 0:00:05.8]} 57... Rh5 {[%clk 0:00:03.1]} 58. Bc6 {[%clk
0:00:05.6]} 58... Rh2 {[%clk 0:00:03.7]} 59. Bd5 {[%clk 0:00:05.4]} 59... Kc7
{[%clk 0:00:04.6]} 60. Ra6 {[%clk 0:00:05]} 60... Rb2+ {[%clk 0:00:05]} 61. Kc4
{[%clk 0:00:05.5]} 61... Rc2+ {[%clk 0:00:05.8]} 62. Kb4 {[%clk 0:00:06]} 62...
Rb2+ {[%clk 0:00:06]} 63. Kc3 {[%clk 0:00:06.5]} 63... Re2 {[%clk 0:00:06.3]}
64. Rb6 {[%clk 0:00:06.4]} 64... Re1 {[%clk 0:00:05.3]} 65. a5 {[%clk
0:00:06.2]} 65... Kc8 {[%clk 0:00:06.1]} 66. a6 {[%clk 0:00:06.1]} 66... Rc1+
{[%clk 0:00:06.1]} 67. Kd4 {[%clk 0:00:06.1]} 67... Ba7 {[%clk 0:00:05.3]} 68.
Rc6+ {[%clk 0:00:06.6]} 68... Kd8 {[%clk 0:00:05.1]} 69. e5 {[%clk 0:00:07]}
69... Rd1+ {[%clk 0:00:04.8]} 70. Ke4 {[%clk 0:00:07.5]} 70... Re1+ {[%clk
0:00:04.8]} 71. Kf4 {[%clk 0:00:08]} 71... Bb8 {[%clk 0:00:04.9]} 72. Kf3 {[%clk
0:00:07.5]} 72... Bxe5 {[%clk 0:00:05]} 73. a7 {[%clk 0:00:07.2]} 73... Ra1
{[%clk 0:00:04.6]} 74. Rb6 {[%clk 0:00:04.7]} 1-0